bitfinex/quotes_ETHUSD_20260312
["timestamp","ask_amount","ask_price","bid_price","bid_amount"]
[1773342704547,0.46953325,2048.7,2048.2,0.01330609]
[1773342704963,0.46953325,2048.7,2048.2,1.23388943]
[1773342705262,0.46953325,2048.7,2048.2,1.68906391]
[1773342705759,0.46953325,2048.7,2048.2,1.23388943]
[1773342705967,0.46953325,2048.7,2048.5,0.0011]
[1773342706139,0.47053325,2048.7,2048.5,0.0011]
[1773342706763,0.71155374,2049.0,2048.5,0.45627448]
[1773342707065,0.24202049,2049.0,2048.5,0.45627448]
[1773342707259,1.22009983,2049.1,2048.5,0.45627448]
[1773342707642,0.24122785,2049.1,2048.5,0.45627448]
[1773342707961,0.01220304,2049.2,2048.5,0.45627448]
[1773342708353,1.2321948,2049.2,2048.6,1.2203456]
[1773342708564,1.2321948,2049.2,2048.7,0.45517448]
[1773342708752,0.46953325,2049.1,2048.5,0.0011]
[1773342708946,0.46953325,2049.1,2048.5,1.22149545]
[1773342709356,0.46953325,2049.1,2048.5,1.67666993]
[1773342710467,1.22010736,2049.0,2048.5,1.67666993]
[1773342710663,1.67503943,2049.0,2048.5,1.67666993]
[1773342711361,0.45493207,2048.8,2048.5,0.0011]
[1773342711663,0.45493207,2048.6,2048.3,0.0011]
[1773342714067,3.86577589,2048.7,2048.3,0.0011]
[1773342714369,1.67526101,2048.7,2048.3,0.0011]
[1773342715367,0.45493207,2048.6,2048.3,0.0011]
[1773342716069,1.67531904,2048.6,2048.3,0.0011]
[1773342716268,0.45493207,2048.5,2048.3,0.0011]
[1773342716469,3.86583392,2048.6,2048.0,0.0011]
[1773342716470,0.45493207,2048.3,2048.0,0.0011]
[1773342718270,1.67551302,2048.3,2048.0,0.0011]
[1773342718847,1.22058095,2048.3,2048.0,0.0011]
[1773342719148,0.45493207,2048.2,2048.0,0.0011]
[1773342720473,0.45493207,2048.0,2047.8,0.0011]
[1773342720975,0.45493207,2048.0,2047.6,0.01220914]
[1773342721161,0.45493207,2047.8,2047.6,0.01220914]
[1773342721356,0.45493207,2047.6,2047.3,0.81598589]
[1773342721555,0.45493207,2047.6,2046.8,0.45216961]
[1773342721556,3.10564012,2047.4,2046.8,1.67356554]
[1773342721753,7.9089395,2047.9,2046.9,0.45216961]
[1773342721754,3.10564012,2047.6,2046.9,0.45216961]
[1773342721954,0.45493207,2047.5,2046.9,0.45216961]
[1773342722154,7.9089395,2047.9,2046.7,1.67361166]
[1773342722155,3.10564012,2047.4,2046.7,1.67361166]
[1773342722351,3.10564012,2047.2,2046.6,1.23370695]
[1773342722559,3.10564012,2047.2,2046.6,0.01221525]
[1773342722560,2.65070805,2046.8,2046.6,0.01221525]
[1773342722960,0.45493207,2046.9,2046.6,0.01221525]
[1773342723378,0.45493207,2046.9,2046.0,7.61655997]
[1773342723379,2.65070805,2046.7,2046.2,0.45216961]
[1773342723551,10.18637531,2047.2,2046.2,0.45216961]
[1773342723552,0.45493207,2047.2,2046.2,0.45216961]
[1773342723758,0.45493207,2047.2,2046.3,0.45216961]
[1773342724059,0.45493207,2047.0,2046.3,0.45216961]
[1773342724291,2.65070805,2047.1,2046.1,1.23404121]
[1773342724292,2.65070805,2046.9,2046.1,1.23404121]
[1773342724587,3.10564012,2046.7,2046.1,1.68621082]
[1773342725354,1.67621198,2047.1,2046.2,0.45216961]
[1773342725581,0.45493207,2047.1,2046.2,0.45216961]
[1773342726484,0.45493207,2047.1,2046.3,1.22171724]
[1773342726687,1.67606139,2047.3,2046.4,0.45216961]
[1773342726856,0.24314816,2047.4,2046.4,0.45216961]
[1773342727057,1.47589016,2048.1,2046.3,3.87242529]
[1773342727058,3.10564012,2047.8,2046.6,0.45216961]
[1773342727258,2.65070805,2047.4,2046.6,0.45216961]
[1773342727687,3.10564012,2047.4,2046.6,0.45216961]
[1773342728179,2.65070805,2047.4,2046.6,0.45216961]
[1773342728387,3.10564012,2047.4,2046.6,0.45216961]
[1773342729280,2.65070805,2047.4,2046.7,1.22147847]
[1773342729584,2.65070805,2047.4,2046.8,0.45216961]
[1773342730088,0.001,2047.0,2046.8,0.45216961]
[1773342730271,0.0122122,2047.6,2046.8,0.45216961]
[1773342730866,1.68808937,2047.6,2046.8,0.45216961]
[1773342731061,0.46714427,2047.6,2046.8,0.45216961]
[1773342731380,0.46714427,2047.6,2046.9,1.22135912]
[1773342731565,0.0122122,2047.6,2047.0,0.45216961]
[1773342732362,0.0122122,2047.6,2046.7,5.33794174]
[1773342732363,2.65070805,2047.5,2046.7,5.33794174]
[1773342732567,3.10564012,2047.5,2046.8,1.22137696]
[1773342732965,0.45493207,2047.4,2046.7,1.6736003]
[1773342734855,0.0122122,2047.6,2046.8,0.45216961]
[1773342735177,0.0122122,2047.6,2046.9,0.45216961]
[1773342735377,0.0122122,2047.6,2047.1,0.45216961]
[1773342735578,3.08459572,2048.2,2047.1,0.45216961]
[1773342735891,4.30519351,2048.2,2047.1,0.45216961]
[1773342736256,1.93520017,2048.2,2047.1,0.45216961]
[1773342736479,1.4802681,2048.2,2047.1,0.45216961]
[1773342736690,0.25967031,2048.2,2047.1,0.45216961]
[1773342736899,0.25967031,2048.2,2047.3,0.45216961]
[1773342737466,2.65070805,2048.1,2047.5,0.45216961]
[1773342737666,0.71460238,2048.2,2047.5,0.45216961]
[1773342737861,1.93521698,2048.2,2047.5,0.45216961]
[1773342739768,1.93521698,2048.2,2047.6,1.22094159]
[1773342740563,1.93518745,2048.2,2047.6,1.22094159]
[1773342740760,0.25967031,2048.2,2047.6,1.69242746]
[1773342740960,0.25967031,2048.2,2047.7,0.47148587]
[1773342741365,0.01220914,2048.2,2047.7,0.47148587]
[1773342741782,0.01220914,2048.2,2047.8,1.22082234]
[1773342743094,0.001,2048.0,2047.8,1.22082234]
[1773342744278,0.01220914,2048.2,2047.8,1.22082234]
[1773342744496,0.01220914,2048.2,2047.9,0.47148587]
[1773342745893,0.01220914,2048.2,2047.7,0.47258587]
[1773342746081,0.01220914,2048.2,2047.7,1.22198086]
[1773342746474,0.01220914,2048.2,2047.7,1.69346673]
[1773342748291,0.01220914,2048.2,2047.8,0.47148587]
[1773342752306,1.23249687,2048.7,2048.1,1.22064352]
[1773342752607,1.23249687,2048.7,2047.8,5.3546417]
[1773342752608,3.11015147,2048.5,2047.8,5.3546417]
[1773342752981,3.11015147,2048.5,2047.8,1.69230821]
[1773342752982,0.45944342,2048.4,2047.8,1.69230821]
[1773342753986,2.65070805,2048.5,2047.8,1.22082234]
[1773342754196,0.45944342,2048.6,2047.9,0.47148587]
[1773342754504,0.45944342,2048.6,2048.0,1.22070312]
[1773342754709,1.67979072,2048.6,2048.0,1.22070312]
[1773342754911,0.46044342,2048.5,2047.7,0.0011]
[1773342755206,0.45944342,2048.3,2047.7,1.69342027]
[1773342755921,2.65070805,2048.4,2047.7,1.69342027]
[1773342756211,0.001,2048.5,2047.7,1.69342027]
[1773342756709,0.001,2048.5,2047.8,0.47148587]
[1773342756884,0.46044342,2048.5,2047.8,0.47148587]
[1773342757085,2.65070805,2048.2,2047.7,1.22198035]
[1773342757517,0.45944342,2048.4,2047.7,1.22198035]
[1773342757700,0.45944342,2048.1,2047.7,0.0011]
[1773342758212,0.45944342,2048.1,2047.7,1.22198007]
[1773342758616,0.45944342,2048.1,2047.7,0.0011]
[1773342758911,1.68008984,2048.1,2047.7,0.0011]
[1773342759294,1.68008891,2048.1,2047.7,0.0011]
[1773342759808,0.45944342,2048.1,2047.7,0.0011]
[1773342762817,1.467,2048.2,2047.7,0.47571067]
[1773342763401,0.74088814,2048.4,2047.7,0.47571067]
[1773342763703,0.49444022,2048.3,2047.7,0.47571067]
[1773342763904,0.49444022,2048.3,2047.7,0.0011]
[1773342766398,1.22058392,2048.2,2047.9,0.0011]
[1773342766609,1.71500859,2048.3,2047.9,0.0011]
[1773342768295,0.49444022,2048.3,2047.9,0.0011]
[1773342768505,4.1176467,2048.4,2047.9,0.0011]
[1773342769023,0.49444022,2048.3,2047.9,0.0011]
[1773342769221,3.14514827,2048.2,2047.9,0.0011]
[1773342769392,0.49444022,2048.1,2047.9,0.0011]
[1773342770199,2.65070805,2048.2,2047.9,0.0011]
[1773342771410,0.49444022,2048.3,2047.9,0.0011]
[1773342772100,0.46994083,2048.2,2047.9,0.0011]
[1773342772696,1.93688882,2048.4,2047.9,0.0011]
[1773342772899,0.71638875,2048.4,2047.9,0.0011]
[1773342774329,1.9368586,2048.4,2047.9,0.0011]
[1773342774501,0.24644792,2048.4,2047.9,0.47783464]
[1773342774707,1.22141184,2048.5,2047.9,0.47783464]
[1773342774902,0.001,2048.5,2048.0,1.69743776]
[1773342775135,0.24783914,2048.5,2048.0,1.69743776]
[1773342775434,0.24783914,2048.5,2048.1,0.47673464]
[1773342775928,0.01220609,2048.7,2048.1,0.47673464]
[1773342776233,0.01220609,2048.7,2048.2,0.47673464]
[1773342776436,0.001,2048.9,2048.2,0.47673464]
[1773342776929,0.001,2048.9,2048.3,1.22052433]
[1773342777134,0.47094083,2048.9,2048.3,1.69725897]
[1773342777330,2.65170805,2048.9,2048.4,0.47673464]
[1773342777533,0.001,2048.9,2048.4,0.47673464]
[1773342778926,0.47094083,2048.9,2048.4,0.47673464]
[1773342779104,0.47094083,2048.9,2048.4,1.22042785]
[1773342779306,0.47094083,2048.9,2048.4,1.69716249]
[1773342779729,0.001,2048.9,2048.5,0.47673464]
[1773342780811,0.01220304,2049.2,2048.6,0.47673464]
[1773342781019,0.01320304,2049.2,2048.6,0.47673464]
[1773342781636,0.01320304,2049.2,2048.8,0.47673464]
[1773342783717,1.67060865,2049.3,2049.0,0.47673464]
[1773342783915,0.001,2049.4,2049.0,0.47673464]
[1773342784739,0.001,2049.4,2049.1,0.47673464]
[1773342785036,0.001,2050.0,2049.1,0.47673464]
[1773342785246,0.001,2050.0,2049.4,0.47673464]
[1773342785539,0.001,2050.0,2049.5,0.47673464]
[1773342785706,0.001,2050.0,2049.6,1.21975019]
[1773342785915,0.001,2050.0,2049.7,0.47673464]
[1773342787738,0.001,2050.0,2049.8,1.21963118]
[1773342788235,0.002,2050.0,2049.7,1.21965388]
[1773342788438,0.001,2050.0,2049.5,1.2198097]
[1773342788621,0.001,2049.9,2049.5,1.2198097]
[1773342788933,0.001,2049.9,2049.5,1.69654434]
[1773342789236,0.001,2050.0,2049.6,0.47673464]
[1773342789431,0.001,2050.0,2049.5,1.2198097]
[1773342789637,0.001,2050.0,2049.5,1.69654434]
[1773342791024,0.001,2049.8,2049.5,1.69654434]
[1773342791539,0.001,2049.8,2049.6,0.47673464]
[1773342792730,0.001,2049.8,2049.5,4.87913061]
[1773342793140,0.001,2049.8,2049.6,0.47673464]
[1773342793939,0.01219694,2050.2,2049.8,0.47673464]
[1773342794126,1e-08,2050.2,2049.8,0.47673464]
[1773342794741,1e-08,2050.2,2050.0,0.47673464]
[1773342794936,1e-08,2050.2,2049.9,1.21957168]
[1773342795837,0.47094083,2050.5,2049.9,1.21957168]
[1773342796415,0.47094083,2050.5,2049.9,1.69630632]
[1773342797131,0.47094083,2050.5,2049.9,1.21957168]
[1773342797416,1.69016169,2050.5,2049.9,1.21957168]
[1773342798036,0.46994083,2050.4,2049.9,1.21957168]
[1773342799222,0.46994083,2050.4,2049.8,4.87828674]
[1773342799432,1.68924007,2050.4,2049.8,4.87828674]
[1773342799626,0.46994083,2050.4,2049.8,4.87828674]
[1773342800213,1.68923073,2050.4,2049.8,4.87828674]
[1773342800442,0.46994083,2050.4,2049.8,4.87828674]
[1773342800638,0.46994083,2050.4,2049.8,5.37256719]
[1773342801241,1.6892225,2050.4,2049.8,5.37256719]
[1773342801420,0.47179282,2050.2,2049.8,1.21962706]
[1773342803128,0.47179282,2050.1,2049.7,1.2318445]
[1773342804549,0.47179282,2050.1,2049.7,0.01219694]
[1773342804754,0.47179282,2050.1,2049.7,1.23188398]
[1773342806244,0.47179282,2050.1,2049.3,4.87969372]
[1773342806245,0.47179282,2049.9,2049.3,4.87969372]
[1773342806636,1.69128261,2050.1,2049.4,0.49428045]
[1773342806838,0.47179282,2050.0,2049.4,0.49428045]
[1773342807350,0.47179282,2050.0,2049.3,4.87969372]
[1773342807552,0.47179282,2050.0,2049.3,5.37397417]
[1773342807752,0.71557329,2050.2,2049.4,0.49428045]
[1773342807941,0.001,2050.2,2049.4,0.49428045]
[1773342808145,0.47279282,2050.2,2049.6,0.49428045]
[1773342808450,0.01319694,2050.2,2049.6,0.49428045]
[1773342808833,0.48498976,2050.2,2049.6,0.49428045]
[1773342811059,0.47179282,2050.0,2049.4,1.21981608]
[1773342811248,0.47179282,2050.0,2049.4,1.71409653]
[1773342811446,1.70438609,2050.2,2049.5,0.54307283]
[1773342811762,1.70438609,2050.2,2049.5,0.49428045]
[1773342812234,3.12053539,2050.1,2049.4,1.21981608]
[1773342812435,0.47179282,2050.0,2049.4,1.71409653]
[1773342815365,0.47179282,2050.0,2049.6,0.0011]
[1773342815571,1.6913144,2050.0,2049.6,0.0011]
[1773342815863,0.47179282,2049.9,2049.6,0.0011]
[1773342817358,1.69136624,2049.9,2049.6,0.0011]
[1773342817536,0.47179282,2049.9,2049.6,0.0011]
[1773342819884,0.47179282,2049.8,2049.6,0.0011]
[1773342821670,0.47179282,2049.9,2049.6,0.0011]
[1773342823875,1.464,2050.0,2049.6,0.0011]
[1773342824075,1.464,2050.0,2049.6,0.4710878]
[1773342824481,0.46719272,2050.1,2049.6,0.4710878]
[1773342824879,0.02319694,2050.2,2049.6,0.4710878]
[1773342826363,0.02319694,2050.2,2049.8,0.4699878]
[1773342827454,0.49038966,2050.2,2049.7,1.21969068]
[1773342827862,0.49038966,2050.2,2049.7,1.68967848]
[1773342829284,1.70978598,2050.2,2049.7,1.68967848]
[1773342829462,0.001,2050.0,2049.6,1.22080261]
[1773342831678,0.46726309,2050.0,2049.6,1.22080261]
[1773342832357,0.46726309,2050.0,2049.6,1.68866455]
[1773342833590,0.46726309,2050.0,2049.6,1.22080261]
[1773342834366,0.46726309,2050.0,2049.6,1.22081345]
[1773342834570,0.46626309,2049.9,2049.5,1.21979221]
[1773342835480,0.001,2050.0,2049.6,0.46786194]
[1773342837565,0.001,2050.0,2049.7,1.68755262]
[1773342837890,0.02319694,2050.2,2049.8,0.46786194]
[1773342838094,0.001,2050.3,2050.0,0.46786194]
[1773342839566,0.001,2050.3,2050.1,1.68731464]
[1773342839767,0.001,2050.3,2050.2,0.46786194]
[1773342841000,0.001,2050.3,2050.1,1.2682308]
[1773342841200,0.001,2050.3,2050.2,0.46786194]
[1773342841366,0.01219389,2050.7,2050.2,0.46786194]
[1773342841566,0.01219389,2050.7,2050.4,1.68713622]
[1773342841767,0.01219389,2050.7,2050.4,1.21927428]
[1773342843209,0.00200001,2050.6,2050.4,1.21927428]
[1773342843720,0.00200001,2050.6,2050.3,0.46786194]
[1773342843914,0.00200001,2050.6,2050.2,1.21935379]
[1773342845011,0.00200001,2050.6,2050.3,0.46786194]
[1773342845397,0.01219389,2050.7,2050.3,0.46786194]
[1773342845822,0.01219389,2050.7,2050.5,0.46786194]
[1773342846314,0.71199687,2051.1,2050.5,0.46786194]
[1773342846521,1.93086527,2051.1,2050.5,0.46786194]
[1773342847624,1.93085797,2051.1,2050.5,0.46786194]
[1773342848608,1.93085797,2051.1,2050.6,1.21915536]
[1773342849493,0.46626309,2051.0,2050.4,1.21927428]
[1773342849689,0.46626309,2050.9,2050.4,1.21927428]
[1773342849893,0.46626309,2050.9,2050.4,1.68713622]
[1773342850825,1.68527675,2050.9,2050.4,1.68713622]
[1773342851737,1.68524904,2050.9,2050.4,1.68713622]
[1773342852033,0.46626309,2050.8,2050.2,1.68720611]
[1773342852527,0.46626309,2050.8,2050.2,1.23153806]
[1773342852823,1.68550516,2050.5,2050.2,0.01219389]
[1773342853320,1.68550516,2050.5,2049.9,1.22063336]
[1773342853321,0.46626309,2050.4,2049.9,1.22063336]
[1773342853700,0.46626309,2050.4,2049.9,1.6884953]
[1773342854818,0.46626309,2050.4,2050.1,0.0011]
[1773342855324,1.22022101,2050.5,2050.1,0.0011]
[1773342855619,1.6864841,2050.5,2050.1,0.0011]
[1773342856528,0.001,2050.5,2050.1,0.46896194]
[1773342856716,1.22021609,2050.5,2050.1,0.46896194]
[1773342857229,0.001,2050.5,2050.1,1.68839768]
[1773342857713,0.46726309,2050.5,2050.1,1.68839768]
[1773342857901,0.46726309,2050.5,2050.1,0.0011]
[1773342859133,0.46626309,2050.3,2050.1,0.0011]
[1773342859334,0.46626309,2050.3,2049.9,1.2206705]
[1773342859531,0.46626309,2050.3,2049.9,0.0011]
[1773342860223,0.46726309,2050.5,2049.9,1.68852744]
[1773342860409,1.68647929,2050.5,2050.0,0.46786194]
[1773342860921,0.47405805,2050.4,2049.9,0.4757751]
[1773342861119,0.47405805,2050.3,2049.9,1.22066398]
[1773342861415,1.69430565,2050.5,2050.0,0.4746751]
[1773342862125,1.69427419,2050.5,2050.0,0.4746751]
[1773342863224,1.69427419,2050.5,2050.0,1.69413368]
[1773342866634,1.69427419,2050.5,2050.2,0.0011]
[1773342867028,0.001,2050.3,2050.2,0.0011]
[1773342872516,0.001,2050.3,2049.9,0.4757751]
[1773342875361,0.001,2050.3,2050.0,1.69418729]
[1773342878968,0.001,2050.5,2050.1,0.4746751]
[1773342879973,0.001,2050.5,2050.1,0.4757751]
[1773342881074,0.001,2050.5,2050.2,1.21939322]
[1773342881448,0.001,2050.5,2050.2,1.69406832]
[1773342885970,0.001,2050.5,2050.2,1.21939322]
[1773342886154,0.001,2050.5,2050.2,1.6949829]
[1773342886974,0.001,2050.5,2050.3,0.47558968]
[1773342887275,1.23102479,2051.2,2050.5,0.47558968]
[1773342887643,1.49390758,2051.2,2050.6,1.21915536]
[1773342887844,0.01219085,2051.2,2050.7,0.47558968]
[1773342888043,0.001,2051.5,2050.8,0.47558968]
[1773342888274,0.001,2051.5,2051.0,0.47558968]
[1773342888747,1e-08,2052.0,2051.5,0.47558968]
[1773342888967,1.0577573,2051.6,2050.7,0.47558968]
[1773342889185,1.32164009,2051.4,2050.7,0.47558968]
[1773342889540,0.26388279,2051.6,2050.7,0.47558968]
[1773342889745,1.48250331,2051.5,2050.9,0.47558968]
[1773342890042,0.26388279,2051.3,2050.7,1.69465555]
[1773342890248,0.26388279,2051.3,2050.7,1.21906587]
[1773342890466,1.48250331,2051.5,2050.8,0.47558968]
[1773342891459,0.00199999,2051.4,2050.8,0.47558968]
[1773342891859,0.00199999,2051.4,2050.9,1.21897703]
[1773342892143,0.26388279,2051.3,2050.8,0.45606764]
[1773342892347,2.90575959,2051.2,2050.7,1.68842365]
[1773342893684,0.26388279,2051.1,2050.7,0.01329085]
[1773342893867,0.26388279,2051.1,2050.7,1.23238149]
[1773342893868,1.48274983,2051.1,2050.7,1.23238149]
[1773342894368,2.6418768,2051.2,2050.7,1.68844913]
[1773342894369,1.21884565,2051.2,2050.7,1.68844913]
[1773342895280,0.45712857,2051.1,2050.5,1.67635373]
[1773342895468,0.45912856,2051.1,2050.5,0.45716764]
[1773342895680,0.45712857,2050.9,2050.5,1.67637153]
[1773342896883,1.67611754,2050.9,2050.5,1.67637153]
[1773342897284,1.67611754,2050.9,2050.5,0.45716764]
[1773342897487,1.67611754,2050.9,2050.5,1.67637437]
[1773342897850,1.66392974,2050.9,2050.5,1.67637437]
[1773342898863,0.00199999,2050.8,2050.5,1.67637114]
[1773342899571,0.00199999,2050.8,2050.5,0.45716764]
[1773342899772,0.00199999,2050.8,2050.5,1.67637743]
[1773342900560,0.00199999,2050.8,2050.6,0.45606764]
[1773342901576,0.00199999,2050.8,2050.7,1.21909591]
[1773342901775,0.00199999,2050.8,2050.7,1.67516355]
[1773342902694,0.00199999,2050.8,2050.7,0.45606764]
[1773342903054,2.64300722,2051.5,2050.7,0.45606764]
[1773342903254,3.13654858,2051.6,2050.7,0.45606764]
[1773342903453,4.05673556,2051.8,2050.7,0.45606764]
[1773342903684,1.66643244,2051.8,2050.9,0.45606764]
[1773342904184,0.44694076,2051.7,2050.9,0.45606764]
[1773342905184,0.24329943,2051.8,2050.9,0.45606764]
[1773342905353,0.0121878,2051.7,2050.9,0.45606764]
[1773342905770,0.0121878,2051.7,2051.1,0.45606764]
[1773342906079,1.71959359,2051.7,2051.1,0.45606764]
[1773342906269,0.48889915,2051.6,2051.1,0.45606764]
[1773342906677,0.48889915,2051.6,2050.7,0.01329085]
[1773342906678,0.48889915,2051.3,2050.7,0.01329085]
[1773342906857,0.48889915,2051.3,2050.8,0.45606764]
[1773342907787,0.48889915,2051.3,2050.9,1.21897703]
[1773342907962,1.70752042,2051.5,2050.9,1.67504467]
[1773342908286,1.70752042,2051.5,2051.0,0.45606764]
[1773342908287,0.48889915,2051.5,2051.0,0.45606764]
[1773342908582,1.21858446,2051.6,2051.0,0.45606764]
[1773342908760,1.7196377,2051.7,2051.0,0.45606764]
[1773342908962,1.71960354,2051.7,2051.0,0.45606764]
[1773342909989,1.71960354,2051.7,2051.1,1.67492581]
[1773342910190,0.0121878,2051.7,2051.2,0.45606764]
[1773342910486,0.001,2051.8,2051.3,0.45606764]
[1773342911493,1e-08,2052.0,2051.3,0.45606764]
[1773342911679,1e-08,2052.0,2051.4,0.45606764]
[1773342912081,1e-08,2052.0,2051.6,0.45606764]
[1773342913187,1.71893694,2052.8,2051.6,0.45606764]
[1773342913378,1.96318868,2052.8,2051.6,0.45606764]
[1773342914156,1.96318868,2052.8,2051.8,0.45606764]
[1773342914492,1.96318868,2052.8,2051.7,1.21850173]
[1773342914493,1.96318868,2052.8,2052.0,0.45606764]
[1773342914989,1.9631859,2052.8,2052.0,0.45606764]
[1773342915767,1.47428675,2052.8,2052.0,0.45606764]
[1773342916090,0.01218171,2052.8,2052.1,0.45606764]
[1773342916391,0.01218171,2052.8,2052.3,0.45606764]
[1773342916596,0.24355851,2053.1,2052.3,0.45606764]
[1773342916888,1.21765117,2053.2,2052.3,0.45606764]
[1773342917096,2.64300722,2052.8,2052.3,0.45606764]
[1773342917266,3.13190637,2052.8,2052.1,1.67428699]
[1773342917461,3.13190637,2052.8,2052.1,1.67431907]
[1773342917674,0.48889915,2052.7,2052.1,1.67431881]
[1773342918199,1.21796745,2052.6,2052.1,0.45606764]
[1773342918399,0.48889915,2052.2,2051.6,1.21856084]
[1773342918567,0.48889915,2052.4,2051.7,0.45606764]
[1773342918773,1.7068666,2052.6,2051.7,0.45606764]
[1773342918974,0.48889915,2052.7,2051.7,0.45606764]
[1773342919173,1.7066293,2053.0,2051.8,0.45606764]
[1773342919402,1.7066293,2053.0,2051.6,1.21856084]
[1773342919403,1.7066293,2053.0,2052.0,0.45606764]
[1773342919804,3.14408503,2053.3,2052.0,0.45606764]
[1773342920098,1.71866655,2053.3,2052.2,0.45606764]
[1773342920303,1.22974412,2053.3,2052.4,0.45606764]
[1773342920697,1.46762946,2053.3,2052.4,0.45606764]
[1773342920900,2.64300722,2053.1,2052.4,0.45606764]
[1773342921103,3.13762101,2052.9,2052.3,0.01218171]
[1773342921404,0.49461379,2052.9,2052.3,0.50856481]
[1773342921599,0.49461379,2053.1,2052.3,0.50856481]
[1773342922177,1.96224325,2053.3,2052.3,0.50856481]
[1773342922400,1.96224325,2053.3,2052.5,0.4963831]
[1773342922401,0.49461379,2053.2,2052.5,0.4963831]
[1773342922801,0.49461379,2053.1,2052.5,0.4963831]
[1773342923002,0.49461379,2053.1,2052.3,4.88452628]
[1773342923003,0.49461379,2052.9,2052.3,1.72669305]
[1773342923306,0.49461379,2052.9,2052.3,1.74780409]
[1773342923819,0.01217866,2053.3,2052.4,0.4963831]
[1773342924208,1.22973594,2053.3,2052.4,0.4963831]
[1773342924409,3.13762101,2053.2,2052.6,0.4963831]
[1773342924780,1.22976504,2053.3,2052.6,0.4963831]
[1773342924989,1.72437883,2053.3,2052.6,0.4963831]
[1773342925606,0.49461379,2053.1,2052.5,1.21802679]
[1773342925905,2.64300722,2053.2,2052.5,1.71440989]
[1773342926104,2.64300722,2053.0,2052.4,1.21804929]
[1773342926296,1.71228711,2053.1,2052.5,0.4963831]
[1773342926501,1.21764439,2053.2,2052.6,0.51830184]
[1773342926694,1.21764439,2053.2,2052.6,0.4963831]
[1773342927088,0.01217866,2053.3,2052.6,0.4963831]
[1773342927687,0.01217866,2053.3,2052.8,0.59194941]
[1773342928210,3.87274564,2053.3,2052.8,0.59194941]
[1773342928385,3.87274564,2053.3,2052.6,1.21796745]
[1773342928707,3.87274564,2053.3,2052.5,1.80993916]
[1773342929006,3.87274564,2053.3,2052.5,0.59194941]
[1773342929007,2.64500722,2053.1,2052.5,0.59194941]
[1773342929394,0.002,2053.1,2052.5,1.85868149]
[1773342929593,0.002,2053.1,2052.6,0.59194941]
[1773342929981,2.64500722,2053.1,2052.6,0.59194941]
[1773342930187,2.64500722,2053.1,2052.4,1.81001167]
[1773342930789,1.21773015,2053.0,2052.4,1.81001167]
[1773342931614,1.21773015,2053.0,2052.5,0.59194941]
[1773342931814,3.8627138,2053.1,2052.5,0.59194941]
[1773342931984,1.21970658,2053.1,2052.5,0.59194941]
[1773342932519,3.8627138,2053.1,2052.4,1.21806226]
[1773342933193,3.8627138,2053.1,2052.4,1.81001167]
[1773342934300,3.8627138,2053.1,2052.5,0.59194941]
[1773342934694,1.21970658,2053.1,2052.5,0.59194941]
[1773342935233,0.002,2053.1,2052.6,1.21796745]
[1773342935400,0.002,2053.1,2052.6,1.80991686]
[1773342935586,0.002,2053.1,2052.6,0.59194941]
[1773342936901,0.002,2053.1,2052.5,1.80993045]
[1773342937422,0.01217866,2053.3,2052.5,0.59194941]
[1773342937609,1.22976604,2053.3,2052.5,0.59194941]
[1773342937926,3.87277326,2053.3,2052.5,0.59194941]
[1773342938222,3.87277326,2053.3,2052.7,0.59194941]
[1773342939591,1.22975607,2053.3,2052.7,1.80982892]
[1773342939899,1.22975607,2053.3,2052.7,0.59194941]
[1773342940329,1.22975607,2053.3,2052.8,0.59194941]
[1773342941441,2.64300722,2053.1,2052.6,1.80989967]
[1773342941834,3.86072658,2053.1,2052.6,1.85736357]
[1773342943147,3.86072658,2053.1,2052.6,0.59194941]
[1773342943355,3.86072658,2053.1,2052.6,0.001]
[1773342943560,1.21971936,2053.1,2052.6,0.001]
[1773342944539,2.64300722,2052.9,2052.6,0.001]
[1773342945237,1.484,2053.0,2052.6,0.001]
[1773342945623,3.18,2052.8,2052.6,0.001]
[1773342945947,3.18,2052.8,2052.6,0.59294941]
[1773342947036,2.70173254,2053.0,2052.6,0.59294941]
[1773342947835,1.484,2053.0,2052.6,1.81086853]
[1773342948141,2.70173379,2053.0,2052.6,0.59294941]
[1773342948440,2.70173379,2053.0,2052.6,0.001]
[1773342948739,5.34474101,2053.0,2052.6,0.001]
[1773342948915,2.64300722,2052.7,2052.4,0.001]
[1773342950241,1.21796745,2052.6,2052.4,0.001]
[1773342950549,1.21796745,2052.6,2052.0,0.001]
[1773342950550,2.64300722,2052.4,2052.0,0.001]
[1773342950774,2.64300722,2052.1,2051.7,0.01218475]
[1773342951250,5.82300722,2052.3,2051.7,0.01218475]
[1773342952326,1.21820485,2052.2,2051.7,0.01218475]
[1773342952537,1.491,2052.1,2051.7,0.01218475]
[1773342952733,1.491,2052.1,2051.7,0.60413416]
[1773342952934,8.53219224,2052.3,2051.8,0.59194941]
[1773342953717,8.774457,2052.3,2051.8,0.59194941]
[1773342955022,8.774457,2052.3,2051.7,0.01218475]
[1773342955238,2.64300722,2052.1,2051.7,1e-08]
[1773342955443,8.774457,2052.3,2051.7,0.59194942]
[1773342955746,4.91326476,2052.3,2051.8,0.59194941]
[1773342956059,6.13142876,2052.3,2051.8,0.59194941]
[1773342956628,2.95142876,2052.3,2051.8,0.59194941]
[1773342956854,2.95142876,2052.3,2051.9,0.001]
[1773342957064,2.64300722,2052.2,2051.9,0.001]
[1773342957422,2.95142876,2052.3,2051.9,0.001]
[1773342957626,1.73326476,2052.3,2051.9,0.59294941]
[1773342957937,2.96360089,2052.3,2051.9,0.59294941]
[1773342958957,2.96360089,2052.3,2051.9,1.81132957]
[1773342959658,2.96360089,2052.3,2051.9,0.59294941]
[1773342960633,1.7454495,2052.3,2051.9,1.81132992]
[1773342960837,2.73106671,2052.8,2052.2,0.59194941]
[1773342961661,5.37407393,2052.8,2052.2,0.59194941]
[1773342962231,3.87507393,2052.8,2052.2,0.59194941]
[1773342962661,4.11969102,2052.8,2052.2,0.59194941]
[1773342962958,1.4766838,2052.8,2052.3,0.59194941]
[1773342963758,1.47666567,2052.8,2052.3,0.59194941]
[1773342965248,1.47666567,2052.8,2052.4,0.59194941]
[1773342965560,1.47666567,2052.8,2052.1,0.59194941]
[1773342965760,2.63853632,2052.7,2052.1,0.59194941]
[1773342966329,0.01418171,2052.8,2052.1,0.59194941]
[1773342966867,0.002,2053.0,2052.1,0.59194941]
[1773342967051,0.002,2053.0,2052.2,0.59194941]
[1773342967252,0.002,2053.0,2052.4,0.59194941]
[1773342967455,0.002,2053.1,2052.5,0.59094941]
[1773342969368,0.002,2053.1,2052.7,0.59094941]
[1773342971558,0.002,2053.1,2052.9,0.59094941]
[1773342972878,1.21735974,2053.7,2052.9,0.58994941]
[1773342973644,1.46486423,2053.7,2053.1,0.58994941]
[1773342974064,4.10340055,2053.7,2053.1,0.58994941]
[1773342974967,4.10340055,2053.7,2052.9,4.8709206]